bitfinex/quotes_ETHUSD_20250129
["timestamp","ask_amount","ask_price","bid_price","bid_amount"]
[1738182695361,3.15847,3166.1,3165.3,3.15924]
[1738182695590,3.15857,3166.0,3165.4,3.15914]
[1738182695799,3.15848,3166.1,3165.4,3.15914]
[1738182696155,0.7788,3166.7,3164.5,0.45525585]
[1738182696354,3.15815,3166.5,3165.1,3.15939]
[1738182696629,3.15819,3166.4,3165.7,3.15877]
[1738182696780,0.7788,3166.7,3164.9,0.7514]
[1738182696984,0.7788,3166.7,3166.2,3.15834]
[1738182697218,1.172456,3166.7,3166.3,3.15823]
[1738182697353,3.94422,3167.2,3166.4,3.15816]
[1738182697700,3.15706,3167.6,3166.7,3.15777]
[1738182697900,3.1577,3166.9,3166.1,0.7607]
[1738182698059,3.15718,3167.4,3166.5,3.158]
[1738182698252,0.631414,3167.4,3166.9,3.15763]
[1738182698565,3.15731,3167.3,3166.5,3.15805]
[1738182698771,3.15739,3167.2,3166.5,3.15805]
[1738182698996,0.7809,3167.7,3166.5,3.158]
[1738182698997,3.15731,3167.3,3166.5,3.158]
[1738182699368,3.15745,3167.2,3166.5,3.158]
[1738182699555,3.15717,3167.4,3166.6,3.15788]
[1738182699894,0.7809,3167.7,3166.6,0.631588]
[1738182700199,0.1618321,3167.9,3166.1,0.7607]
[1738182700200,0.1618321,3167.9,3167.4,3.15712]
[1738182700468,0.1618321,3167.9,3166.3,0.63306905]
[1738182700945,3.15694,3167.7,3167.1,3.15742]
[1738182701251,0.1618321,3167.9,3167.3,3.15721]
[1738182701457,0.1618321,3167.9,3167.4,3.15712]
[1738182701654,0.1618321,3167.9,3166.8,3.15769]
[1738182701819,0.1618321,3167.9,3167.8,3.15676]
[1738182702752,0.1618321,3167.9,3167.2,3.15731]
[1738182702906,0.1618321,3167.9,3167.8,3.15676]
[1738182703762,2.1e-06,3167.9,3167.8,6.97096]
[1738182704060,0.005,3168.4,3168.3,3.15626]
[1738182704273,0.7976,3170.2,3169.4,3.15516]
[1738182704425,3.15505,3169.6,3168.8,3.15575]
[1738182704630,3.15545,3169.2,3168.5,3.15598]
[1738182704888,3.1557,3168.9,3167.8,1.43567748]
[1738182705031,3.15597,3168.6,3168.0,3.15655]
[1738182705225,3.95308,3169.1,3167.8,0.8142]
[1738182705421,3.15662,3168.0,3167.3,3.97143]
[1738182705674,3.15706,3167.5,3166.8,3.97195]
[1738182705855,3.15716,3167.4,3166.8,3.97195]
[1738182706066,3.15706,3167.5,3166.9,3.15766]
[1738182706381,3.15606,3168.6,3166.9,3.15766]
[1738182706382,0.7517,3168.4,3167.0,3.15748]
[1738182706529,0.7517,3168.4,3167.2,3.15727]
[1738182706724,3.15638,3168.2,3167.4,3.15711]
[1738182706961,3.15621,3168.4,3167.0,3.15756]
[1738182707125,3.15629,3168.3,3167.4,3.15709]
[1738182707325,3.15629,3168.3,3167.0,3.77738211]
[1738182707679,3.15617,3168.4,3167.4,3.15708]
[1738182707861,0.7517,3168.9,3167.1,0.37773821]
[1738182708091,3.15607,3168.5,3167.8,3.15669]
[1738182708404,0.7517,3168.9,3167.5,3.15705]
[1738182708405,3.15651,3168.1,3167.5,3.15705]
[1738182708721,3.1567,3167.9,3167.3,3.15718]
[1738182708866,3.1567,3167.9,3167.1,3.53516821]
[1738182708867,3.15693,3167.7,3167.1,3.15743]
[1738182709068,3.15719,3167.4,3166.8,0.8142]
[1738182709298,3.15706,3167.6,3166.9,3.15762]
[1738182709607,0.7586,3167.9,3166.3,0.8175]
[1738182709978,0.7586,3167.9,3167.2,3.15732]
[1738182710183,3.91534,3167.9,3166.3,0.8175]
[1738182710376,3.15694,3167.7,3167.1,3.15744]
[1738182710594,3.91534,3167.9,3166.9,3.15764]
[1738182710595,3.15699,3167.6,3166.9,3.15764]
[1738182710925,0.7586,3167.9,3166.3,0.8175]
[1738182711221,3.15696,3167.6,3167.0,3.15748]
[1738182711367,3.15693,3167.7,3166.8,3.15772]
[1738182711564,3.9153,3167.9,3167.0,3.15747]
[1738182711782,1.15013,3167.9,3166.6,3.15793]
[1738182711980,3.15737,3167.2,3166.6,3.15793]
[1738182712204,3.9153,3167.9,3166.3,0.8175]
[1738182712205,3.15676,3167.8,3166.3,0.8175]
[1738182712405,3.91533,3167.9,3166.3,0.8175]
[1738182712607,0.7586,3167.9,3166.4,3.15815]
[1738182712808,3.15748,3167.1,3166.5,3.15803]
[1738182713018,3.15725,3167.4,3166.5,3.15803]
[1738182713214,3.15697,3167.6,3166.7,3.15781]
[1738182713505,3.15676,3167.8,3166.5,3.555563]
[1738182713708,3.15735,3167.3,3166.7,3.15779]
[1738182713911,3.1571,3167.5,3166.7,3.15779]
[1738182714093,1.40381832,3167.9,3166.5,0.397553]
[1738182714094,3.15702,3167.6,3166.8,3.15767]
[1738182714412,0.7586,3167.9,3166.7,3.15779]
[1738182714596,3.15745,3167.2,3166.6,3.15796]
[1738182714793,0.7586,3167.9,3166.3,0.8175]
[1738182714994,3.15721,3167.4,3166.7,3.15779]
[1738182715311,3.15678,3167.8,3166.9,3.15756]
[1738182715551,3.157,3167.6,3166.9,3.15756]
[1738182715756,3.15717,3167.4,3166.8,3.15775]
[1738182716058,3.157,3167.6,3166.9,3.15758]
[1738182716207,0.7586,3167.9,3167.4,3.15716]
[1738182716409,3.15623,3168.4,3166.7,3.15777]
[1738182716609,3.15623,3168.4,3166.8,0.315777]
[1738182716835,3.15638,3168.2,3167.6,3.15695]
[1738182717051,0.7696,3168.5,3167.1,3.15736]
[1738182717222,3.15616,3168.4,3166.6,3.15788]
[1738182717549,3.15738,3167.2,3166.5,3.15799]
[1738182717705,3.9696,3167.4,3166.5,0.713365]
[1738182717910,3.15691,3167.7,3167.1,3.15739]
[1738182718112,3.98373,3167.9,3167.3,3.15725]
[1738182718311,0.2,3169.2,3166.3,0.8175]
[1738182718312,3.15631,3168.3,3166.3,0.8175]
[1738182718557,0.827,3168.5,3166.4,0.55]
[1738182718558,3.15619,3168.4,3166.4,0.55]
[1738182718712,3.15634,3168.3,3167.6,3.1569]
[1738182718911,3.15634,3168.3,3167.0,3.15751]
[1738182718912,3.15634,3168.3,3167.5,3.15704]
[1738182719112,3.15632,3168.3,3167.7,3.15682]
[1738182719346,0.827,3168.5,3168.1,3.1564]
[1738182719530,3.1558,3168.8,3168.2,3.15635]
[1738182719737,3.1558,3168.8,3168.1,3.15638]
[1738182719915,0.7674,3169.1,3168.6,3.15593]
[1738182720283,0.7632,3169.6,3167.8,0.8078]
[1738182720411,3.15525,3169.4,3168.0,0.61659843]
[1738182720611,3.15547,3169.1,3167.9,3.15665]
[1738182720941,3.15619,3168.4,3167.3,0.7985]
[1738182721264,0.315525,3169.3,3167.2,0.62083079]
[1738182721265,0.8205,3169.3,3168.8,3.15574]
[1738182721414,3.15494,3169.7,3169.1,3.15539]
[1738182721614,3.15528,3169.3,3168.7,3.15578]
[1738182721826,3.15507,3169.5,3168.7,3.548628]
[1738182722009,3.15484,3169.8,3169.1,3.15543]
[1738182722242,0.791,3170.5,3168.5,3.92871]
[1738182722243,3.1552,3169.4,3168.5,3.92871]
[1738182722438,3.1552,3169.4,3168.7,3.15579]
[1738182722610,3.1552,3169.4,3168.5,0.7727]
[1738182722611,3.1552,3169.4,3168.6,3.15589]
[1738182722815,3.7755003,3170.1,3168.8,3.15568]
[1738182723064,3.15498,3169.6,3168.8,3.15568]
[1738182723355,3.15574,3168.9,3168.1,3.15637]
[1738182723571,0.7801,3169.5,3168.0,0.825]
[1738182723746,0.7853,3170.0,3169.5,3.15503]
[1738182723917,0.7853,3170.7,3169.7,3.15485]
[1738182724118,0.63721418,3170.6,3169.5,3.15504]
[1738182724447,3.61179442,3170.5,3169.7,3.15486]
[1738182724755,3.15443,3170.2,3169.6,3.15488]
[1738182724926,3.15414,3170.5,3169.7,3.15478]
[1738182725132,0.7853,3170.7,3169.2,0.7563]
[1738182725133,1.40224205,3170.7,3169.2,0.7563]
[1738182725328,3.15473,3169.9,3169.2,0.7563]
[1738182725528,3.1543,3170.3,3169.4,3.15516]
[1738182725834,0.7853,3170.7,3170.1,3.15447]
[1738182726029,0.1618321,3171.0,3170.4,0.8214]
[1738182726340,0.1618321,3171.0,3170.9,3.15367]
[1738182727333,0.1618321,3171.0,3170.6,3.15395]
[1738182727532,0.1618321,3171.0,3170.9,3.15367]
[1738182727876,0.1618321,3171.0,3170.8,3.15375]
[1738182728033,0.1618321,3171.0,3170.4,0.8214]
[1738182728355,0.1618321,3171.0,3169.9,0.62730568]
[1738182728356,3.15414,3170.5,3169.9,3.15466]
[1738182728558,3.15389,3170.7,3170.1,3.15446]
[1738182728860,3.15389,3170.7,3169.8,0.8051]
[1738182729155,0.1618321,3171.0,3169.3,0.7591]
[1738182729360,3.15457,3170.0,3169.3,0.7591]
[1738182729528,0.32273041,3171.0,3169.3,0.7591]
[1738182729529,3.15386,3170.8,3169.8,3.15471]
[1738182729734,3.15367,3170.9,3169.6,3.1549]
[1738182730060,3.15404,3170.6,3169.7,3.15484]
[1738182730241,3.1537,3170.9,3170.2,3.15429]
[1738182730416,0.1618321,3171.0,3170.3,0.315429]
[1738182730615,3.15379,3170.8,3170.1,3.1544]
[1738182730856,0.1618321,3171.0,3169.3,0.7591]
[1738182731061,0.1618321,3171.0,3169.2,7.0685477]
[1738182731062,0.1618321,3171.0,3170.9,3.95957]
[1738182731862,0.1618321,3171.0,3170.9,0.8059]
[1738182732073,0.1618321,3171.0,3170.2,0.8266]
[1738182732563,0.1618321,3171.0,3170.9,3.15367]
[1738182732720,0.1618321,3171.0,3170.9,3.469037]
[1738182733336,3.15211,3172.5,3171.8,3.15277]
[1738182733549,3.15216,3172.5,3171.8,3.15271]
[1738182733738,3.15276,3171.9,3171.1,3.15343]
[1738182733952,3.15276,3171.9,3170.2,3.15428]
[1738182733953,3.15319,3171.4,3170.1,0.7938]
[1738182734164,3.15346,3171.2,3170.4,3.15411]
[1738182734369,3.15336,3171.3,3170.5,3.15402]
[1738182734571,3.15336,3171.3,3170.4,3.15409]
[1738182734572,3.15339,3171.2,3170.4,3.15409]
[1738182734887,3.15365,3171.0,3170.4,0.315409]
[1738182735090,0.8148,3171.6,3170.1,0.7938]
[1738182735091,3.15418,3170.4,3170.1,0.7938]
[1738182735234,3.15384,3170.8,3170.1,0.7938]
[1738182735435,3.15353,3171.1,3170.3,3.15419]
[1738182735765,3.15338,3171.2,3170.3,0.394799]
[1738182735972,0.8148,3171.6,3170.5,3.15406]
[1738182736131,0.8148,3171.6,3170.3,3.15427]
[1738182736332,0.8148,3171.6,3170.1,0.7938]
[1738182736536,3.15364,3171.0,3170.2,3.15436]
[1738182736738,3.1534,3171.2,3170.4,3.15416]
[1738182736965,3.15368,3170.9,3170.2,3.15436]
[1738182737284,3.15404,3170.6,3170.1,0.7938]
[1738182737435,6.30676,3171.2,3169.6,0.7799]
[1738182737642,3.0075,3171.3,3169.2,3.15529]
[1738182737643,3.15473,3169.9,3169.2,3.15529]
[1738182737936,3.1546,3170.0,3169.4,3.15514]
[1738182738494,0.931426,3171.1,3169.0,1.40787785]
[1738182738640,3.1542,3170.4,3169.7,3.15484]
[1738182738833,3.15409,3170.5,3169.8,3.15475]
[1738182739166,3.15371,3170.9,3169.3,3.15519]
[1738182739364,3.15319,3171.4,3170.6,3.15389]
[1738182739565,0.8254,3171.6,3170.6,0.315389]
[1738182739751,3.15311,3171.5,3170.9,3.1536]
[1738182740085,3.15319,3171.4,3170.8,3.94727]
[1738182740585,3.1535,3171.1,3170.4,3.15416]
[1738182740743,3.15392,3170.7,3170.0,3.1545]
[1738182740941,3.15358,3171.0,3170.2,3.15435]
[1738182741145,3.15392,3170.7,3169.9,3.15458]
[1738182741449,3.15377,3170.8,3169.7,0.7791]
[1738182741662,3.15439,3170.2,3169.7,0.7791]
[1738182742072,3.15429,3170.3,3169.4,3.15515]
[1738182742277,3.15429,3170.3,3169.4,0.63245845]
[1738182742477,3.15475,3169.9,3169.2,35.8052]
[1738182742641,3.15483,3169.8,3169.2,3.9605]
[1738182743084,3.15475,3169.9,3169.2,3.9605]
[1738182743288,3.15488,3169.7,3169.2,3.9605]
[1738182743443,3.15488,3169.7,3169.2,0.8052]
[1738182743642,3.15472,3169.9,3169.3,3.1552]
[1738182743946,0.7663,3170.5,3169.7,3.15484]
[1738182743947,3.15424,3170.4,3169.7,3.15484]
[1738182744147,3.15403,3170.6,3169.9,3.15463]
[1738182744499,3.95564,3171.0,3170.2,3.15427]
[1738182744500,3.1537,3170.9,3170.2,3.15427]
[1738182744998,3.15387,3170.8,3170.2,3.15437]
[1738182745547,0.788,3171.5,3170.2,0.315437]
[1738182745703,3.15311,3171.5,3170.9,3.15366]
[1738182745859,3.15209,3172.5,3170.9,3.15366]
[1738182745860,0.7581,3171.9,3170.9,3.15366]
[1738182746057,3.15307,3171.6,3170.4,35.0]
[1738182746261,3.15279,3171.8,3171.1,3.15341]
[1738182746456,0.7581,3171.9,3171.0,3.15357]
[1738182746700,3.15289,3171.7,3171.0,3.468927]
[1738182746904,3.15289,3171.7,3171.0,3.468837]
[1738182747083,3.15298,3171.7,3171.0,3.15348]
[1738182747414,3.15298,3171.6,3170.5,3.15407]
[1738182747728,3.15236,3172.3,3171.6,3.1529]
[1738182748219,3.15113,3173.5,3172.9,3.15164]
[1738182748386,0.9820321,3174.1,3171.8,4.04936055]
[1738182748587,3.15101,3173.6,3172.0,3.15258]
[1738182748805,0.9820321,3174.1,3172.6,3.15195]
[1738182749006,3.1562,3173.4,3172.4,3.15218]
[1738182749401,3.15142,3173.2,3172.3,3.95175]
[1738182749586,0.005,3173.4,3172.4,3.15218]
[1738182749785,0.005,3173.4,3173.3,3.15129]
[1738182750205,0.005,3173.4,3172.7,3.15188]
[1738182750410,0.005,3173.4,3172.6,3.15197]
[1738182750577,0.005,3173.4,3172.3,1.194675]
[1738182750929,0.005,3173.4,3172.3,4.194675]
[1738182751228,0.005,3173.4,3172.4,3.12998842]
[1738182751532,0.005,3173.4,3172.9,3.15167]
[1738182751680,0.005,3173.4,3172.8,3.15179]
[1738182752037,0.005,3173.4,3173.3,3.15129]
[1738182752330,0.005,3173.4,3173.3,3.90309]
[1738182752933,0.005,3173.4,3173.1,3.1514]
[1738182753138,0.005,3173.4,3172.8,0.7518]
[1738182753282,0.005,3173.4,3173.3,3.15129]
[1738182753488,0.005,3173.4,3173.3,3.90309]
[1738182753895,0.005,3173.4,3173.3,4.02952938]
[1738182754298,0.1618321,3174.1,3174.0,3.15059]
[1738182754633,0.1618321,3174.1,3173.9,0.12641547]
[1738182754988,0.1618321,3174.1,3173.9,3.27708547]
[1738182755417,0.1618321,3174.1,3173.9,0.12641547]
[1738182755747,0.1618321,3174.1,3174.0,3.15059]
[1738182755881,3.3123721,3174.1,3173.9,0.12641547]
[1738182756083,0.1618321,3174.1,3174.0,3.15059]
[1738182756385,0.1618321,3174.1,3173.9,3.27703547]
[1738182756617,0.1618321,3174.1,3173.9,0.12641547]
[1738182757122,3.3123321,3174.1,3173.9,0.12641547]
[1738182757632,0.1618321,3174.1,3173.9,0.12641547]
[1738182758799,0.1618321,3174.1,3172.9,0.7873]
[1738182759020,3.15083,3173.8,3172.5,3.15208]
[1738182759180,0.1618321,3174.1,3172.7,3.15188]
[1738182759385,0.1618321,3174.1,3172.6,0.79730406]
[1738182759600,0.1618321,3174.1,3173.4,3.15112]
[1738182759884,3.15063,3174.0,3173.2,3.15138]
[1738182760116,0.1618321,3174.1,3173.6,3.15098]
[1738182760487,0.1618321,3174.1,3173.8,3.15071]
[1738182760718,0.1618321,3174.1,3173.4,0.819]
[1738182761041,0.1618321,3174.1,3174.0,3.15059]
[1738182761391,0.1618321,3174.1,3174.0,3.27700149]
[1738182761802,0.1618321,3174.1,3174.0,0.12641149]
[1738182762384,3.3123221,3174.1,3174.0,0.12641149]
[1738182762884,3.15068,3174.0,3173.2,3.15133]
[1738182763128,3.15098,3173.7,3173.0,0.11813406]
[1738182763331,3.15132,3173.3,3173.1,0.11813034]
[1738182763500,3.15126,3173.4,3173.1,0.11813034]
[1738182763828,3.15139,3173.2,3173.1,0.11813034]
[1738182765580,3.15139,3173.2,3173.1,3.4e-07]
[1738182765699,3.84461478,3173.2,3173.1,3.4e-07]
[1738182766033,3.84461478,3173.2,3170.8,3.15374]
[1738182766034,0.3769,3171.9,3170.8,3.15374]
[1738182766325,3.15324,3171.4,3170.7,0.8075]
[1738182766529,3.15344,3171.2,3170.7,0.8075]
[1738182766843,3.15349,3171.1,3170.3,3.15424]
[1738182767044,3.15362,3171.0,3170.3,3.15426]
[1738182767342,3.15331,3171.3,3170.5,3.15405]
[1738182767488,3.15347,3171.2,3170.5,3.15405]
[1738182767687,3.15356,3171.1,3170.3,3.15425]
[1738182767926,3.15398,3170.6,3169.9,3.15466]
[1738182768129,3.15374,3170.9,3169.9,3.15466]
[1738182768298,3.15399,3170.6,3169.9,3.15466]
[1738182768484,3.15412,3170.5,3169.7,3.15483]
[1738182768688,3.15412,3170.5,3169.8,3.15475]
[1738182769534,0.814,3171.0,3169.4,3.15513]
[1738182769685,0.63320759,3171.3,3169.2,0.88873196]
[1738182769686,0.7736,3170.0,3169.2,0.10493196]
[1738182769889,0.7736,3170.0,3168.2,0.7838]
[1738182770129,3.15517,3169.4,3168.4,3.15614]
[1738182770295,3.15517,3169.4,3168.4,3.15615]
[1738182770296,3.15542,3169.2,3168.4,3.15615]
[1738182770659,0.7736,3170.0,3168.4,0.78699]
[1738182770796,0.7736,3170.0,3169.3,3.15519]
[1738182770995,0.7736,3170.0,3169.2,3.15537]
[1738182771192,0.7736,3170.4,3168.9,4.04936055]
[1738182771426,0.7736,3170.4,3169.2,0.7838]
[1738182771590,3.92778,3170.4,3169.6,3.15497]
[1738182771790,0.7736,3170.4,3170.1,3.1544]
[1738182772113,0.8089,3171.0,3169.5,3.0]
[1738182772309,0.8089,3171.0,3169.8,3.15477]
[1738182772515,0.8089,3171.0,3169.5,3.0]
[1738182772845,0.8089,3171.0,3170.4,3.15414]
[1738182773026,0.8089,3171.0,3170.5,3.15405]
[1738182773228,0.8081,3171.6,3171.0,3.15356]
[1738182773598,0.8081,3172.2,3171.5,3.15305]
[1738182773826,1.204136,3172.2,3171.6,3.15296]
[1738182774031,1.204136,3172.2,3171.4,3.15315]
[1738182774032,3.1525,3172.1,3171.4,3.15315]
[1738182774193,0.8081,3172.2,3171.1,4.04936055]
[1738182774400,3.96052,3172.2,3171.3,3.1532]
[1738182774604,3.96051,3172.2,3171.1,4.04936055]
[1738182774906,3.15239,3172.2,3171.4,3.15312]
[1738182775104,6.30396,3172.6,3171.2,3.15338]
[1738182775307,3.15211,3172.5,3171.3,3.15327]
[1738182775608,3.15239,3172.2,3171.3,3.15327]
[1738182776052,3.15219,3172.4,3171.4,3.15314]
[1738182776206,3.15239,3172.2,3171.1,4.04936055]
[1738182776403,3.15239,3172.2,3171.4,3.15312]
[1738182776729,3.1523,3172.3,3171.5,3.15301]
[1738182776917,3.15208,3172.5,3171.7,3.15287]
[1738182777119,3.15199,3172.6,3171.9,3.15263]
[1738182777308,3.15221,3172.4,3171.7,3.15287]
[1738182777637,3.1522,3172.4,3171.5,3.15307]
[1738182777955,3.15238,3172.3,3171.5,3.15307]
[1738182778304,3.15238,3172.3,3171.5,3.15306]
[1738182778645,3.15259,3172.0,3171.1,7.20283055]
[1738182778808,3.15325,3171.4,3170.6,7.20329055]
[1738182779006,3.15346,3171.2,3170.6,4.04936055]
[1738182779206,3.15278,3171.8,3170.8,3.1537]
[1738182779503,0.63192967,3171.9,3170.8,3.15377]
[1738182779758,0.63192967,3171.9,3170.6,4.04936055]
[1738182779961,3.1537,3170.9,3170.2,3.15432]
[1738182780164,0.7811,3171.1,3170.1,4.04936055]
[1738182780367,0.7811,3171.5,3170.1,7.20377055]
[1738182780567,3.15417,3170.4,3169.6,4.04936055]
[1738182780719,0.7811,3170.5,3169.8,3.15476]
[1738182780906,3.15365,3171.0,3170.0,3.15457]
[1738182781128,0.708826,3171.0,3169.6,4.04936055]
[1738182781409,3.15469,3169.9,3169.1,7.20480055]
[1738182781728,3.90429,3170.7,3170.0,3.15457]
[1738182781930,0.7504,3170.7,3169.1,7.20477055]
[1738182782115,3.15498,3169.6,3168.9,3.15561]
[1738182782317,3.15492,3169.7,3168.8,3.15576]
[1738182782529,3.15566,3169.0,3168.2,3.98394]
[1738182782731,0.7943,3169.7,3168.1,4.04936055]
[1738182782932,0.792,3169.4,3167.6,4.04936055]
[1738182783131,0.792,3169.4,3167.3,1.263344]
[1738182783132,3.15656,3168.0,3167.3,1.263344]
[1738182783660,3.15672,3167.9,3167.2,3.15735]
[1738182783812,3.15689,3167.7,3167.1,0.005]
[1738182784003,3.15707,3167.5,3167.1,0.005]
[1738182784211,3.15729,3167.3,3167.1,0.005]
[1738182784420,0.792,3168.1,3167.1,0.005]
[1738182784665,1.186828,3168.1,3167.1,0.005]
[1738182784823,3.94847,3168.1,3167.1,3.16241]
[1738182785149,0.8123,3169.2,3168.5,3.15603]
[1738182785319,0.8123,3169.2,3168.5,3.15598]
[1738182785519,0.8123,3169.2,3168.2,0.816]
[1738182785759,3.97906,3169.8,3168.5,4.04936055]
[1738182786051,3.97906,3169.8,3168.3,38.15622]
[1738182786052,0.8242,3169.8,3168.3,38.15622]
[1738182786211,0.8242,3170.2,3169.0,4.04936055]
[1738182786412,3.15457,3170.1,3169.4,3.15515]
[1738182786636,3.15377,3170.9,3169.5,4.04936055]
[1738182786839,0.7671,3171.2,3170.7,3.15386]
[1738182787049,3.15347,3171.1,3170.1,3.15447]
[1738182787250,0.7671,3171.2,3169.4,0.315515]
[1738182787251,3.15398,3170.6,3169.7,3.15486]
[1738182787562,3.15396,3170.7,3169.8,3.15473]
[1738182787760,3.15365,3171.0,3170.0,3.15448]
[1738182787969,3.92055,3171.2,3170.5,3.15407]
[1738182788127,0.7671,3171.2,3170.6,3.15389]
[1738182788324,3.15256,3172.1,3171.3,3.15323]
[1738182788524,3.15256,3172.1,3171.1,4.04936055]
[1738182788525,3.15272,3171.9,3171.1,4.04936055]
[1738182788721,3.15299,3171.6,3170.6,7.20331055]
[1738182788968,0.630484,3172.1,3170.4,3.15408]
[1738182789130,1.38007026,3172.2,3170.3,0.7671]
[1738182789131,3.15268,3171.9,3170.3,0.7671]
[1738182789325,3.1525,3172.1,3171.2,3.15335]
[1738182789527,3.15272,3171.9,3171.1,3.15347]
[1738182790078,3.15248,3172.1,3171.1,3.15347]
[1738182790244,3.15279,3171.8,3170.9,3.15364]
[1738182790424,3.15277,3171.9,3170.4,0.10489224]
[1738182790629,0.45325503,3172.0,3170.3,1.40983106]
[1738182790630,3.15278,3171.8,3170.3,1.40983106]
[1738182790857,3.1531,3171.5,3170.7,3.15382]
[1738182791167,0.45325503,3172.0,3170.3,1.40983106]
[1738182791168,3.1527,3171.9,3171.0,3.15353]
[1738182791369,3.90661,3172.2,3171.5,3.153]
[1738182791662,3.94797,3172.7,3171.7,3.1528]
[1738182791861,3.1523,3172.3,3171.5,3.15305]
[1738182792078,0.796,3172.7,3172.2,3.15235]
[1738182792285,0.796,3172.7,3171.4,0.64367829]
[1738182792632,0.796,3173.2,3171.5,3.15308]
[1738182792864,3.94748,3173.2,3172.4,3.15217]
[1738182793064,3.1516,3173.0,3172.3,3.15222]
[1738182793272,3.1516,3173.0,3172.0,3.15256]
[1738182793273,3.15216,3172.5,3171.7,3.15279]
[1738182793469,3.15219,3172.4,3171.7,3.15279]
[1738182793797,3.15248,3172.1,3171.4,3.79723719]
[1738182793926,3.1525,3172.1,3171.4,0.64405719]
[1738182794126,0.796,3173.2,3171.4,3.15317]
[1738182794390,0.7621,3173.0,3171.3,0.10486248]
[1738182794551,3.153,3171.6,3171.3,0.10486248]
[1738182794723,3.15263,3172.0,3171.3,0.10486248]
[1738182794922,3.15258,3172.1,3171.3,0.10486248]
[1738182795286,3.15208,3172.5,3171.3,0.10486248]
[1738182795427,3.15318,3171.4,3171.3,0.10486248]
[1738182795624,3.90408,3171.4,3171.3,0.10486248]
[1738182796980,3.91158,3171.4,3171.3,2.48e-06]
[1738182797142,3.90408,3171.4,3171.3,2.48e-06]
[1738182797341,0.7509,3171.4,3171.3,2.48e-06]
[1738182797543,0.7961,3171.8,3171.3,2.48e-06]
[1738182797746,3.15318,3171.4,3171.3,2.48e-06]
[1738182797927,3.16818,3171.4,3171.3,2.48e-06]
[1738182798131,7.63808,3171.4,3171.3,2.48e-06]
[1738182798352,3.15507,3169.5,3168.7,0.7864]
[1738182798553,0.3769,3169.9,3168.7,0.7864]
[1738182798766,3.15478,3169.8,3169.1,3.15541]
[1738182798968,3.15534,3169.3,3168.6,3.15596]
[1738182799274,3.15596,3168.7,3168.4,0.09514735]
[1738182799433,3.507938,3169.8,3168.4,0.09514735]
[1738182799434,3.15551,3169.1,3168.4,0.09514735]
[1738182799772,0.353168,3169.8,3168.4,0.09514735]
[1738182799972,0.8186,3170.8,3168.7,0.7947]
[1738182800141,3.1542,3170.4,3168.8,3.15576]
[1738182800343,3.15405,3170.6,3169.7,3.15479]
[1738182800571,0.8186,3170.8,3169.7,3.15487]
[1738182800870,3.15387,3170.7,3169.1,0.63043031]
[1738182801071,2.060559,3172.3,3170.7,3.15379]
[1738182801383,3.15272,3171.9,3171.2,3.15335]
[1738182801670,3.15265,3172.0,3171.2,3.15335]
[1738182801878,3.15275,3171.9,3171.0,3.15349]
[1738182802085,0.7979,3172.3,3170.7,3.15387]
[1738182802294,0.8224,3173.0,3171.0,3.0]
[1738182802463,3.15191,3172.7,3171.9,3.15265]
[1738182802663,3.15191,3172.7,3171.0,3.0]
[1738182802664,3.15169,3172.9,3172.0,3.1525]
[1738182802873,3.1518,3172.8,3172.0,3.1525]
[1738182803074,3.15201,3172.6,3171.9,3.15268]
[1738182803269,3.1522,3172.4,3171.8,3.15273]
[1738182803448,3.15201,3172.6,3171.9,3.15261]
[1738182804204,0.31518,3172.7,3171.4,3.15318]
[1738182804410,0.31518,3172.7,3171.3,0.61606035]
[1738182804411,0.8224,3173.0,3171.8,3.15271]
[1738182804702,3.15224,3172.4,3171.3,0.61606035]
[1738182804990,0.8224,3173.0,3171.1,0.7986]
[1738182805292,3.15169,3172.9,3172.2,3.1523]
[1738182805514,0.8224,3173.0,3171.9,3.15262]
[1738182805669,3.15196,3172.7,3171.9,3.15262]
[1738182805987,0.8224,3173.0,3171.6,3.15288]
[1738182805988,3.15207,3172.6,3171.6,3.15288]
[1738182806187,0.8224,3173.0,3171.6,3.15288]
[1738182806364,0.8224,3173.0,3171.2,3.15337]
[1738182806365,3.15249,3172.1,3171.2,3.15337]
[1738182806566,3.1525,3172.1,3171.4,3.15308]
[1738182806773,3.1525,3172.1,3171.1,0.7986]
[1738182806774,0.31525,3172.1,3171.1,0.7986]
[1738182806954,3.15269,3171.9,3171.2,3.15336]
[1738182807266,3.15342,3171.2,3170.5,3.15399]
[1738182807590,1.40808933,3171.9,3170.1,3.92316]
[1738182807775,1.40808933,3171.9,3168.8,3.15568]
[1738182807776,3.15387,3170.7,3169.7,3.15486]
[1738182807976,3.15406,3170.6,3169.9,3.15458]
[1738182808165,3.15424,3170.4,3169.6,0.7687]
[1738182808489,0.7821,3170.4,3169.4,3.15507]
[1738182808662,3.15435,3170.3,3169.4,3.15507]
[1738182808863,0.7821,3170.9,3169.7,3.1548]
[1738182809110,3.15445,3170.2,3169.5,3.155]
[1738182809270,3.15445,3170.2,3169.6,3.15494]
[1738182809622,3.15443,3170.2,3169.4,3.15515]
[1738182809833,0.6335572,3170.8,3169.6,3.15491]
[1738182810034,3.15423,3170.4,3169.7,3.15485]
[1738182810180,3.7873572,3170.8,3170.0,3.15455]
[1738182810383,3.15411,3170.5,3169.0,4.41171705]
[1738182810618,0.45694572,3170.8,3169.2,3.15535]
[1738182810939,3.15404,3170.6,3169.9,3.15462]
[1738182811099,3.93578,3170.9,3170.3,3.15425]
[1738182811304,0.2,3172.2,3170.3,3.15425]
[1738182811305,0.7821,3171.5,3171.0,3.1535]